bitfinex/quotes_ETHUSD_20251226
["timestamp","ask_amount","ask_price","bid_price","bid_amount"]
[1766760356106,0.04336139,2950.8,2949.3,1.9288]
[1766760356401,0.001,2950.8,2949.5,1.9288]
[1766760356580,0.001,2950.8,2949.6,1.0827348]
[1766760356785,0.04336139,2950.8,2949.7,0.0085433]
[1766760356981,0.04336139,2950.8,2949.7,0.00854199]
[1766760357203,0.001,2950.8,2949.8,1.9288]
[1766760357404,0.001,2950.8,2949.9,2.80056637]
[1766760357899,0.001,2950.8,2950.0,0.00853855]
[1766760358099,0.001,2950.8,2950.1,0.889]
[1766760358414,0.001,2950.8,2950.2,0.00853539]
[1766760359099,13.356805,2950.7,2950.2,0.00853539]
[1766760359316,13.356805,2950.7,2949.8,0.889]
[1766760359317,13.356805,2950.7,2950.0,3.38981354]
[1766760359478,2.0741,2951.7,2950.2,3.3895734]
[1766760359680,15.602221,2951.5,2950.3,0.03389485]
[1766760360012,9.988543,2951.3,2950.1,3.38970215]
[1766760360210,2.0741,2951.7,2950.2,1.9288]
[1766760360211,0.0338339,2951.2,2950.2,1.9288]
[1766760360500,22.687468,2950.9,2950.0,0.0338983]
[1766760360713,22.687468,2950.9,2949.6,2.1225348]
[1766760360714,22.687468,2950.7,2949.6,1.9288]
[1766760360913,22.687468,2950.5,2949.7,0.03390175]
[1766760361090,0.0338339,2950.4,2949.4,3.42440489]
[1766760361292,0.0338339,2950.5,2949.5,1.9288]
[1766760361609,22.687468,2951.6,2949.7,1.9288]
[1766760361782,22.687468,2951.6,2949.9,1.9288]
[1766760361984,0.001,2952.0,2950.4,1.9288]
[1766760362179,2.0741,2952.8,2950.9,1.9288]
[1766760362425,8.493234,2952.7,2951.1,1.9288]
[1766760362628,10.502113,2952.6,2951.3,1.9288]
[1766760362780,2.0741,2952.3,2951.2,0.889]
[1766760362974,2.0741,2952.3,2950.7,1.9288]
[1766760362975,7.231781,2952.2,2951.3,0.03388337]
[1766760363195,4.227554,2952.2,2951.4,0.03388222]
[1766760363402,4.227554,2952.2,2951.0,4.27765374]
[1766760363403,0.07468767,2951.9,2951.1,0.03388566]
[1766760363704,0.07468767,2951.3,2950.1,0.889]
[1766760363893,15.306534,2951.3,2950.2,0.033896]
[1766760364096,17.18987,2951.1,2949.8,1.9288]
[1766760364289,17.18987,2951.1,2949.9,0.889]
[1766760364487,0.08133525,2951.0,2949.9,0.92289945]
[1766760364688,0.08133525,2950.8,2949.9,0.889]
[1766760364897,0.08133525,2951.0,2949.3,1.9288]
[1766760365097,5.152236,2950.9,2949.6,1.9288]
[1766760365301,5.152236,2950.9,2949.5,3.39040515]
[1766760365302,8.492,2951.1,2949.7,2.46072052]
[1766760365496,22.687468,2950.9,2949.8,0.0339006]
[1766760365702,22.687468,2950.9,2949.9,0.92289945]
[1766760366108,0.08133525,2950.8,2949.9,0.03389945]
[1766760366287,11.439717,2950.9,2949.9,0.889]
[1766760366487,9.417,2951.1,2950.0,0.0338983]
[1766760366713,0.94983353,2951.0,2950.0,0.0338983]
[1766760367006,22.687468,2951.3,2950.0,0.0338983]
[1766760367192,22.687468,2951.3,2950.0,3.42369746]
[1766760367193,10.115492,2951.3,2950.0,3.42369746]
[1766760367389,21.448917,2951.5,2950.0,0.0338983]
[1766760367590,3.03478767,2951.6,2950.1,0.889]
[1766760367591,2.15543525,2951.2,2950.1,0.889]
[1766760367794,24.761568,2951.1,2950.2,0.033896]
[1766760368109,2.0741,2951.1,2950.2,0.033896]
[1766760368310,15.276905,2951.4,2950.2,0.033896]
[1766760368686,5.246492,2951.4,2950.2,0.033896]
[1766760369011,2.0751,2951.0,2949.8,0.889]
[1766760369209,6.492,2950.8,2949.9,0.03389945]
[1766760369385,22.687468,2950.7,2949.4,1.9288]
[1766760369582,14.486603,2950.6,2949.5,0.92290405]
[1766760369795,0.85661,2950.7,2949.5,0.92290405]
[1766760369991,2.0741,2950.6,2949.5,0.03390405]
[1766760370294,3.246,2950.3,2949.3,3.39058603]
[1766760370489,2.0741,2950.9,2949.4,0.0339052]
[1766760370694,0.30424353,2950.8,2949.5,2.85170405]
[1766760370901,22.687468,2950.8,2949.8,3.39005445]
[1766760371100,0.001,2951.0,2949.6,1.9288]
[1766760371101,0.001,2951.0,2950.0,6.779661]
[1766760371306,0.001,2951.0,2950.1,1.96269715]
[1766760371489,2.0751,2951.0,2949.4,1.9288]
[1766760371692,0.001,2951.0,2949.9,6.77984189]
[1766760371900,0.001,2951.0,2950.0,1.9626983]
[1766760372134,0.001,2951.0,2950.1,0.889]
[1766760372440,22.687468,2952.0,2950.2,1.962696]
[1766760372603,10.998223,2952.0,2950.2,1.962696]
[1766760372914,4.576,2952.1,2950.2,1.962696]
[1766760373085,4.576,2952.1,2950.4,1.9288]
[1766760373286,3.085238,2952.1,2950.6,1.9288]
[1766760373486,3.035238,2952.1,2950.8,1.9288]
[1766760373715,10.723515,2952.1,2950.9,0.889]
[1766760373894,10.723515,2952.1,2951.0,0.03388681]
[1766760374090,10.723515,2952.1,2950.9,0.889]
[1766760374290,1.0724515,2952.0,2950.9,0.889]
[1766760374490,2.2482,2952.0,2950.5,3.38925605]
[1766760374698,22.637468,2951.8,2950.6,0.92289141]
[1766760374896,22.637468,2951.8,2950.7,0.43121475]
[1766760375098,22.637468,2951.8,2950.8,0.03388911]
[1766760375504,22.637468,2951.8,2950.7,3.82020343]
[1766760375707,2.2482,2951.9,2950.6,0.03389141]
[1766760375708,10.790293,2951.6,2950.6,0.03389141]
[1766760375915,11.563566,2951.5,2950.4,0.889]
[1766760376101,10.344414,2951.5,2950.4,0.889]
[1766760376287,14.71,2951.5,2950.5,0.31145]
[1766760376493,2.2482,2951.4,2949.8,2.2255]
[1766760376805,2.2482,2951.2,2949.9,0.92289945]
[1766760377318,22.637468,2951.1,2949.9,0.92289945]
[1766760377619,22.637468,2951.1,2948.8,9.12363981]
[1766760377620,22.637468,2950.9,2949.4,3.39051444]
[1766760377796,22.637468,2950.9,2949.3,2.2255]
[1766760377797,22.637468,2950.8,2949.5,0.888]
[1766760377996,22.637468,2950.8,2949.7,3.39016647]
[1766760378216,22.637468,2950.8,2949.6,3.39022002]
[1766760378412,2.2482,2950.9,2949.8,3.3900211]
[1766760378596,2.2482,2950.9,2949.9,0.03389945]
[1766760378796,9.324479,2951.3,2950.0,0.0338983]
[1766760379113,3.087342,2951.3,2950.1,3.1135]
[1766760379293,0.5335542,2951.2,2950.2,0.033896]
[1766760379489,17.483772,2951.3,2950.2,3.42345628]
[1766760379710,17.483772,2951.3,2950.2,0.033896]
[1766760380226,2.2482,2951.4,2948.7,2.2255]
[1766760380227,2.2482,2950.8,2948.7,2.2255]
[1766760380392,2.2482,2950.0,2948.1,3.39198763]
[1766760380595,2.2482,2949.6,2948.2,0.56174876]
[1766760380894,22.637468,2949.7,2948.2,0.56174876]
[1766760380895,2.17172211,2949.7,2948.2,0.56174876]
[1766760381094,0.08133525,2950.8,2949.9,12.3542]
[1766760381325,0.08133525,2950.7,2950.1,3.3897156]
[1766760381499,2.32953525,2950.3,2948.4,3.59159687]
[1766760381693,2.32953525,2950.3,2947.7,5.65119618]
[1766760381694,2.32953525,2949.9,2948.3,13.56714036]
[1766760381893,2.2482,2950.4,2948.3,19.21833654]
[1766760382088,0.08815502,2950.1,2948.4,2.30188891]
[1766760382323,2.33635502,2950.3,2948.5,0.03391555]
[1766760382644,0.08815502,2950.1,2948.6,0.23358045]
[1766760382833,0.08815502,2950.1,2948.7,0.03391324]
[1766760383124,2.2482,2950.8,2948.9,5.65119618]
[1766760383323,2.2482,2950.8,2949.1,13.56346]
[1766760383531,0.08815502,2950.7,2949.2,1.48254448]
[1766760383825,2.2482,2950.8,2949.2,1.48254448]
[1766760384192,0.08815502,2950.5,2949.2,1.44863698]
[1766760384601,0.08815502,2950.3,2949.2,1.44863698]
[1766760384830,0.08815502,2949.9,2949.2,1.44863698]
[1766760385048,0.08815502,2949.9,2949.1,6.78173]
[1766760385049,0.08815502,2949.7,2949.1,3.390865]
[1766760385351,0.08815502,2949.7,2948.6,0.23358045]
[1766760385352,0.08815502,2949.5,2948.6,0.23358045]
[1766760385620,2.37026252,2949.4,2948.6,6.78283433]
[1766760385799,0.08133525,2950.9,2948.7,0.03391324]
[1766760385992,0.0339075,2950.0,2948.7,0.92291324]
[1766760386196,0.08815502,2949.8,2948.8,1.10971876]
[1766760386400,0.08815502,2949.5,2948.9,0.03391094]
[1766760386606,0.08815502,2949.7,2949.0,0.002]
[1766760386807,0.97415502,2949.7,2949.0,0.002]
[1766760387098,0.08815502,2949.5,2949.0,0.002]
[1766760387498,0.0339075,2949.4,2949.0,0.002]
[1766760387819,0.08815502,2949.2,2948.4,3.39158949]
[1766760388023,2.2482,2949.4,2948.7,3.39132185]
[1766760388324,0.0339075,2949.3,2948.8,0.03391209]
[1766760388524,0.08815502,2949.0,2948.1,0.42810761]
[1766760388693,0.08815502,2948.5,2947.5,0.889]
[1766760388897,0.04239587,2948.4,2947.6,0.01698596]
[1766760389198,0.04239587,2948.4,2947.7,0.68023677]
[1766760389400,0.04239012,2948.8,2947.9,6.78449064]
[1766760389601,0.04238868,2948.9,2948.0,0.0169756]
[1766760389835,0.08815502,2948.7,2947.3,1.7417]
[1766760390157,0.08815502,2948.3,2947.5,3.392634]
[1766760390306,0.04239875,2948.2,2947.6,0.01698941]
[1766760390638,0.04239875,2948.2,2947.5,0.01698941]
[1766760390841,8.76517902,2948.1,2947.5,0.01698941]
[1766760391045,0.08815502,2947.9,2947.1,0.01699345]
[1766760391340,0.05549106,2947.9,2946.7,0.03393626]
[1766760391630,0.05549106,2947.9,2946.7,7.08666628]
[1766760391631,2.2482,2947.7,2946.7,7.08666628]
[1766760391828,0.08815502,2948.1,2946.7,7.05273002]
[1766760391998,0.91141509,2948.0,2946.8,0.03393511]
[1766760392199,0.08815502,2948.1,2946.9,0.70866651]
[1766760392411,0.886,2947.9,2946.9,0.70866651]
[1766760392633,0.02541509,2947.8,2946.9,0.70866651]
[1766760393529,0.886,2947.7,2947.0,6.82049541]
[1766760393834,0.886,2947.7,2947.1,0.75291619]
[1766760394034,0.886,2947.8,2947.2,0.03393051]
[1766760394633,0.886,2947.8,2947.1,0.75291619]
[1766760394941,0.886,2947.8,2947.2,0.03393051]
[1766760395141,0.886,2947.8,2947.1,0.03393166]
[1766760395341,0.02541509,2947.7,2947.1,0.03393166]
[1766760395541,0.11357011,2947.7,2947.0,0.03393281]
[1766760395743,2.36177011,2947.7,2946.9,0.03393396]
[1766760395945,2.27361509,2947.7,2946.9,0.03393396]
[1766760396130,0.91141509,2947.6,2946.7,3.39362087]
[1766760396324,2.2482,2947.4,2946.8,0.03393511]
[1766760396511,0.02541509,2947.3,2946.7,0.03393626]
[1766760396707,2.2482,2947.2,2946.6,0.002]
[1766760396910,0.886,2947.1,2946.6,0.002]
[1766760397415,0.886,2947.1,2946.6,0.03593741]
[1766760397743,2.2482,2947.8,2946.6,7.16654283]
[1766760397940,0.02541509,2947.7,2946.6,7.13260542]
[1766760398139,2.2482,2948.3,2946.7,1.9176]
[1766760398438,2.2482,2947.9,2946.8,0.03393511]
[1766760398653,2.2482,2947.7,2946.7,0.03393626]
[1766760399110,2.2482,2948.5,2947.0,1.9359]
[1766760399307,2.2482,2948.5,2946.9,5.68818843]
[1766760399308,0.886,2948.4,2947.2,1.9359]
[1766760399507,0.886,2948.3,2947.4,10.17846237]
[1766760399740,2.2482,2949.8,2947.6,1.9359]
[1766760399944,2.2482,2949.6,2947.8,1.9539]
[1766760400140,2.33635502,2949.6,2947.9,0.03392245]
[1766760400921,2.2482,2949.6,2947.9,0.03392245]
[1766760401129,0.886,2949.5,2948.0,2.0056213]
[1766760401338,2.2482,2949.6,2948.1,0.20056213]
[1766760401544,2.2482,2949.4,2948.1,0.20056213]
[1766760401749,2.2482,2949.2,2948.2,0.033919]
[1766760402041,0.886,2949.1,2948.1,6.78401097]
[1766760402253,0.886,2949.1,2948.2,0.033919]
[1766760402436,2.2482,2949.2,2948.2,0.033919]
[1766760402612,0.886,2949.1,2948.3,0.71571085]
[1766760402819,2.2482,2949.2,2948.3,0.71571085]
[1766760403143,3.1342,2949.0,2948.3,0.71571085]
[1766760403522,2.2482,2949.0,2948.3,4.10738368]
[1766760403847,0.886,2948.9,2948.4,0.74992507]
[1766760404065,2.3599,2949.5,2948.5,0.03391555]
[1766760404261,0.886,2949.4,2948.3,3.39167283]
[1766760405346,0.886,2949.4,2948.3,6.78345792]
[1766760405552,0.001,2949.1,2948.0,5.46647462]
[1766760405770,0.001,2949.1,2948.0,2.41362089]
[1766760405935,0.001,2949.1,2948.1,0.03392015]
[1766760406363,0.001,2949.1,2948.2,2.0908]
[1766760406519,2.3599,2949.5,2948.3,2.12371785]
[1766760406718,0.886,2949.4,2948.4,0.21237178]
[1766760406937,2.3599,2949.5,2948.5,0.03391555]
[1766760407145,3.2459,2949.5,2948.5,0.03391555]
[1766760407349,0.886,2949.5,2948.5,0.26752428]
[1766760407546,2.2684,2949.9,2948.6,10.17432]
[1766760407747,0.886,2949.8,2948.7,1.27201324]
[1766760407950,0.886,2950.2,2948.9,1.2381]
[1766760408129,0.886,2950.2,2949.1,1.2381]
[1766760408320,0.886,2950.2,2949.3,1.2381]
[1766760408543,2.2684,2950.6,2949.4,0.3860052]
[1766760408826,5.52103805,2952.1,2949.4,0.3860052]
[1766760408827,2.2694,2951.3,2950.0,0.3699]
[1766760409036,2.2694,2951.3,2950.1,0.889]
[1766760409236,2.2694,2951.3,2950.2,0.033896]
[1766760409570,2.2694,2951.3,2950.4,3.38937093]
[1766760409779,2.2684,2952.0,2950.5,0.03389256]
[1766760409946,2.2684,2952.0,2950.4,3.38937093]
[1766760410276,2.2694,2951.6,2950.5,0.92289256]
[1766760410473,2.2694,2951.6,2950.5,1.35411891]
[1766760410844,2.2694,2951.6,2950.5,0.03389256]
[1766760411081,2.2694,2951.6,2950.6,0.889]
[1766760411382,2.2694,2951.6,2950.7,0.03389026]
[1766760411739,0.001,2951.6,2950.7,6.81191772]
[1766760411943,2.2694,2951.6,2950.3,3.38946109]
[1766760412364,2.2694,2951.6,2949.9,0.4213]
[1766760412562,2.2684,2951.4,2949.8,3.3900461]
[1766760412764,2.2684,2951.4,2949.4,0.50945502]
[1766760412765,2.2684,2951.2,2949.9,0.889]
[1766760412962,2.2684,2951.2,2950.3,3.38939228]
[1766760413170,2.2684,2951.2,2950.4,3.42324645]
[1766760413376,2.2684,2951.2,2950.5,3.3892488]
[1766760413677,3.1544,2951.5,2950.6,0.03389141]
[1766760413886,3.46994,2951.5,2950.6,0.03389141]
[1766760414066,2.2684,2951.4,2950.6,0.03389141]
[1766760414481,2.30229142,2951.4,2949.3,0.4552]
[1766760414681,2.30229142,2951.4,2950.1,3.38969478]
[1766760414989,2.61878314,2951.3,2950.2,0.033896]
[1766760415156,2.30229142,2951.2,2950.3,0.03389485]
[1766760415560,2.30229142,2951.2,2950.3,0.002]
[1766760415794,2.30229142,2951.2,2950.3,3.42536591]
[1766760416084,0.001,2951.3,2950.3,0.03589485]
[1766760416085,0.03389142,2951.1,2950.3,0.03589485]
[1766760416287,2.2684,2951.1,2950.3,0.03589485]
[1766760416492,0.001,2951.3,2950.3,0.03589485]
[1766760416493,2.30229142,2951.0,2950.3,0.03589485]
[1766760416793,2.30229142,2951.0,2950.3,0.002]
[1766760416998,2.30229142,2951.0,2950.3,0.03589485]
[1766760417207,2.2684,2950.9,2950.3,0.002]
[1766760417511,2.2684,2950.7,2950.0,3.38974362]
[1766760417705,0.886,2950.9,2950.3,3.38945159]
[1766760417998,0.886,2950.9,2950.4,0.0338937]
[1766760418200,2.2684,2951.2,2950.3,0.4751491]
[1766760418398,2.2684,2951.2,2950.4,0.0338937]
[1766760419402,0.03389142,2951.1,2950.4,0.0338937]
[1766760419599,2.49534,2951.2,2950.3,0.03389485]
[1766760419809,2.2684,2951.0,2950.3,0.03389485]
[1766760420004,2.2684,2951.0,2950.0,3.4237286]
[1766760420192,2.2684,2951.0,2950.0,0.0338983]
[1766760420393,2.2684,2950.6,2948.2,0.5544]
[1766760420593,6.428824,2950.2,2948.9,3.39099386]
[1766760420818,5.43288303,2950.4,2948.8,0.03391209]
[1766760420819,2.2684,2949.9,2948.8,0.03391209]
[1766760421006,2.2684,2949.5,2948.3,3.39167908]
[1766760421304,2.2684,2949.3,2948.4,0.01698882]
[1766760421606,2.2684,2949.1,2947.9,0.002]
[1766760421799,0.886,2949.4,2947.9,0.002]
[1766760421800,2.2684,2948.9,2947.9,0.002]
[1766760421996,2.2684,2948.7,2947.9,0.002]
[1766760422193,3.196793,2948.6,2947.9,0.002]
[1766760422383,0.886,2948.6,2947.9,0.002]
[1766760423382,2.2684,2948.4,2947.0,0.002]
[1766760423581,2.2684,2948.0,2947.0,0.002]
[1766760423805,2.2684,2947.8,2947.1,3.39315486]
[1766760424105,2.2684,2947.8,2947.2,0.01703255]
[1766760424106,0.04240594,2947.7,2947.2,0.01703255]
[1766760424414,0.04240594,2947.7,2947.0,0.002]
[1766760424782,2.2684,2949.0,2947.0,0.002]
[1766760424978,2.2684,2948.2,2947.0,0.03593281]
[1766760425285,2.2684,2948.0,2947.0,0.002]
[1766760425482,2.2684,2948.8,2947.0,0.03593281]
[1766760425688,2.2684,2948.6,2947.3,6.10348303]
[1766760425909,2.2684,2948.4,2947.0,0.002]
[1766760426218,0.02538548,2948.3,2947.1,1.01821893]
[1766760426514,0.02538548,2948.3,2947.2,0.03393051]
[1766760427084,2.2684,2948.4,2947.2,0.03393051]
[1766760427298,0.91138548,2948.3,2947.2,0.03393051]
[1766760427486,0.91138548,2948.3,2947.1,1.01821893]
[1766760427685,2.2684,2948.2,2947.2,0.17201189]
[1766760427915,2.29378548,2948.1,2947.2,0.03393051]
[1766760428085,2.29378548,2948.1,2947.2,3.42698068]
[1766760428602,2.29378548,2948.1,2947.2,0.03393051]
[1766760428790,2.29378548,2948.1,2947.0,0.03593281]
[1766760428991,2.29378548,2948.1,2947.0,0.002]
[1766760429313,2.2684,2947.9,2947.0,0.002]
[1766760429511,0.22937855,2948.0,2947.1,3.39314729]
[1766760429512,3.17978548,2947.8,2947.1,3.39314729]
[1766760429696,3.17978548,2947.8,2947.2,0.03393051]
[1766760429892,3.17978548,2947.8,2947.1,0.03393166]
[1766760430490,3.17978548,2947.8,2947.1,3.42707446]
[1766760430911,3.1544,2947.8,2947.1,4.1093197]
[1766760431091,3.1544,2947.8,2947.1,7.50248586]
[1766760431288,0.02538548,2948.7,2947.4,5.43288303]
[1766760431490,2.2684,2948.9,2947.5,0.7566]
[1766760431491,0.91138548,2948.8,2947.5,0.7566]
[1766760431823,3.17978548,2948.8,2947.6,0.6189483]
[1766760431987,3.17978548,2948.8,2947.8,6.7847208]
[1766760432195,0.886,2948.9,2947.9,0.03392245]
[1766760432433,2.29378548,2948.8,2948.0,1.59830997]
[1766760432614,2.29378548,2948.8,2948.1,0.02549216]
[1766760432792,2.29378548,2948.8,2947.9,0.03392245]
[1766760432793,2.2684,2948.8,2947.9,0.03392245]
[1766760432994,0.001,2949.3,2947.9,0.03392245]
[1766760432995,0.886,2948.7,2947.9,0.03392245]
[1766760433327,2.2684,2948.4,2947.0,0.002]
[1766760433532,2.2684,2948.2,2947.2,0.03393051]
[1766760433733,0.886,2948.2,2947.7,3.39246421]
[1766760433933,0.001,2949.3,2947.8,0.0339236]
[1766760433934,0.886,2948.6,2947.8,0.0339236]
[1766760434098,0.91138548,2948.7,2947.9,0.34263878]
[1766760434294,2.2684,2948.8,2948.0,0.0339213]
[1766760434534,2.63328548,2948.7,2948.0,0.0339213]
[1766760435819,2.6089,2949.3,2948.1,0.03392015]
[1766760436123,2.6089,2949.3,2948.3,10.17535527]
[1766760436436,0.001,2949.3,2948.4,1.59474053]
[1766760437939,0.001,2949.3,2948.4,2.48374053]
[1766760438136,0.001,2949.3,2948.5,6.78311004]
[1766760438346,0.001,2949.3,2947.9,0.889]
[1766760438347,2.6089,2949.3,2947.9,0.889]
[1766760438639,2.6089,2949.3,2948.4,3.39164319]
[1766760438835,2.6089,2949.3,2948.5,0.03391555]
[1766760439145,2.6079,2949.1,2947.3,5.43288303]
[1766760439442,2.6079,2949.1,2947.5,3.39267408]
[1766760439664,2.6079,2949.1,2947.6,0.0339259]
[1766760439858,2.6079,2948.9,2947.5,0.03392705]
[1766760440061,2.86869,2948.9,2947.3,0.889]
[1766760440228,2.86869,2948.9,2947.5,3.39264093]
[1766760440429,2.86869,2948.9,2947.6,3.42651144]
[1766760440628,2.86869,2948.9,2947.6,0.0339259]
[1766760440850,2.6079,2948.7,2947.6,3.39257985]
[1766760441050,2.6079,2948.5,2947.7,0.03392475]
[1766760442183,2.6089,2949.1,2947.8,6.8186444]
[1766760442332,2.6089,2949.1,2947.8,6.7847208]
[1766760442529,2.6089,2949.1,2947.9,0.03392245]
[1766760442772,2.6089,2949.1,2948.0,0.68186433]
[1766760442930,2.6089,2949.1,2948.1,0.03392015]
[1766760443738,2.6089,2949.1,2948.0,0.68186433]
[1766760443933,2.6089,2949.1,2948.1,0.03392015]
[1766760444156,2.6089,2949.1,2948.0,6.7842605]
[1766760444463,2.6089,2949.1,2948.1,0.03392015]
[1766760444773,0.001,2949.3,2948.4,5.43288303]
[1766760444946,2.6079,2949.7,2948.4,5.43288303]
[1766760445140,2.6079,2949.7,2948.5,0.5432883]
[1766760445532,2.6079,2950.2,2948.5,0.6137883]
[1766760446043,2.6079,2950.2,2948.7,6.78264998]
[1766760446245,2.6079,2950.2,2948.8,0.03391209]
[1766760446452,2.6079,2950.2,2948.9,0.77055621]
[1766760446662,2.6079,2950.2,2949.0,0.03390979]
[1766760448170,2.6079,2950.2,2949.1,6.78173]
[1766760448368,2.6079,2950.2,2949.2,0.0339075]
[1766760449868,2.6089,2950.2,2949.2,0.0339075]
[1766760450052,2.6089,2950.2,2949.3,0.68156375]
[1766760450246,2.6089,2950.2,2949.5,3.39040515]
[1766760450452,2.6089,2950.2,2949.6,0.0339029]
[1766760451183,2.6079,2950.8,2949.6,5.60878593]
[1766760451348,2.6079,2950.8,2949.7,1.61190189]
[1766760451670,2.6079,2950.8,2949.7,1.75390189]
[1766760451990,3.4949,2951.3,2949.8,0.1536]
[1766760452193,2.6089,2951.3,2950.0,3.3898305]
[1766760452389,2.6089,2951.3,2950.1,0.03389715]
[1766760454252,6.428824,2951.0,2949.2,0.2257365]
[1766760454456,0.001,2951.3,2949.6,3.39027407]
[1766760454457,2.6079,2950.8,2949.6,3.39027407]
[1766760454708,2.6079,2950.8,2949.8,3.38997302]
[1766760454909,2.6079,2950.8,2949.9,3.42377957]
[1766760455471,2.6079,2950.8,2949.7,3.3900854]
[1766760455472,2.6079,2950.8,2949.7,3.39014791]
[1766760455719,2.95729,2950.8,2949.8,3.42395361]
[1766760456175,2.95729,2950.8,2949.7,0.03390175]
[1766760456373,2.95729,2950.8,2949.8,0.0339006]
[1766760457915,2.95729,2950.8,2949.2,0.2257365]
[1766760458117,2.6079,2950.6,2949.5,3.39038155]
[1766760458312,2.6079,2950.4,2949.6,0.0339029]
[1766760458602,2.6079,2950.4,2949.2,0.2257365]
[1766760458787,2.6079,2950.2,2949.2,0.2257365]
[1766760459290,2.6079,2950.2,2949.2,3.65e-05]
[1766760459596,2.6079,2949.8,2949.2,3.65e-05]
[1766760459796,2.6079,2949.6,2949.2,3.65e-05]
[1766760462607,0.886,2949.7,2947.9,0.002]
[1766760462608,2.6079,2949.4,2947.9,0.002]
[1766760463218,2.6079,2949.4,2947.9,3.92731914]
[1766760463402,2.6079,2949.4,2948.3,3.39178509]
[1766760463707,2.6079,2949.4,2948.4,0.0339167]
[1766760464302,2.6079,2949.4,2948.3,3.39178509]
[1766760464498,2.6079,2949.4,2948.4,0.0339167]
[1766760464704,2.6079,2949.4,2948.2,0.033919]
[1766760464905,2.6079,2949.4,2948.3,1.10989646]
[1766760465217,2.6079,2949.4,2948.4,0.0339167]
[1766760466509,2.6079,2949.4,2948.5,6.78311004]
[1766760466813,2.6079,2949.4,2948.6,0.0339144]
[1766760467812,0.001,2949.4,2948.6,0.6030144]
[1766760468006,2.8029,2949.9,2948.7,0.77252568]
[1766760468205,2.8029,2949.9,2948.7,1.66152568]
[1766760468403,2.8029,2949.9,2948.7,2.22962568]
[1766760468608,2.8029,2949.9,2948.9,6.78218996]
[1766760468808,2.8029,2949.9,2949.0,0.03390979]
[1766760469214,2.8029,2949.9,2949.1,0.03390865]
[1766760469420,2.8029,2949.9,2948.9,0.03391094]
[1766760469720,2.8029,2949.9,2948.8,3.39119161]
[1766760469721,2.8029,2949.9,2948.6,3.39143827]
[1766760469920,2.8029,2949.6,2948.5,0.42806434]
[1766760470103,2.8029,2949.5,2948.6,3.42532312]
[1766760471110,2.8029,2949.5,2948.7,3.39131962]
[1766760471402,2.8029,2949.5,2948.8,0.03391209]
[1766760472443,0.001,2950.6,2948.9,0.889]
[1766760472725,2.8039,2950.6,2949.0,0.80140979]
[1766760472909,2.8039,2950.6,2949.0,0.7675]
[1766760473105,2.8039,2950.6,2949.1,7.55843]
[1766760473311,2.8039,2950.6,2949.2,0.75923398]
[1766760473512,2.8039,2950.6,2949.3,0.03390635]
[1766760474340,6.428824,2950.3,2948.6,0.889]
[1766760474540,2.8029,2950.1,2948.8,3.39115812]
[1766760474837,2.8029,2950.1,2948.9,0.37641808]
[1766760475341,2.8029,2950.1,2948.9,3.76750148]
[1766760476222,2.8029,2950.1,2948.9,3.76749719]
[1766760476629,2.8029,2950.1,2948.9,0.37841808]
[1766760476799,2.8029,2949.9,2948.9,0.03591094]
[1766760478427,2.8029,2950.4,2949.0,0.8216]
[1766760478632,2.8029,2950.4,2949.2,0.8216]
[1766760478833,2.8029,2950.4,2949.3,0.03390635]
[1766760479331,2.8029,2950.4,2949.4,6.7810402]
[1766760479535,2.8029,2950.4,2949.5,0.79842871]
[1766760479835,0.001,2950.6,2949.6,0.8389]
[1766760480011,0.001,2950.8,2949.8,0.8379]
[1766760480337,0.001,2951.3,2950.1,0.8369]
[1766760480505,0.001,2951.4,2950.3,0.8369]
[1766760480809,2.8029,2951.3,2950.4,0.2098733]
[1766760481007,2.8029,2951.3,2950.4,0.0338937]
[1766760481203,0.001,2951.4,2950.2,6.7792014]
[1766760481411,0.001,2951.4,2950.3,0.87829485]
[1766760481749,2.8029,2951.3,2950.3,0.03389485]
[1766760481906,2.8029,2951.3,2949.2,0.51421069]
[1766760482106,0.887,2951.4,2949.9,3.38986998]
[1766760482107,6.428824,2951.2,2949.9,3.38986998]
[1766760482313,2.8029,2951.1,2949.6,0.889]
[1766760482649,2.8029,2951.1,2949.7,0.03390175]
[1766760482812,2.8029,2951.1,2949.8,3.39002784]
[1766760483010,2.8029,2950.9,2949.9,0.03389945]
[1766760483212,2.8029,2950.8,2949.9,0.03389945]
[1766760483540,2.8029,2950.8,2948.9,0.002]
[1766760483715,6.428824,2950.5,2948.9,0.002]
[1766760483915,2.8029,2950.1,2948.9,0.002]
[1766760484110,2.8029,2949.9,2948.9,0.03591094]
[1766760484423,2.8029,2949.8,2948.9,0.002]
[1766760485734,2.8029,2949.8,2948.4,3.39165593]
[1766760485933,2.8029,2949.6,2948.5,0.37308114]
[1766760486134,2.8029,2949.6,2948.5,0.33916559]
[1766760486308,2.8029,2949.6,2948.6,0.0339144]
[1766760486512,2.8029,2949.6,2948.5,0.33916559]
[1766760486710,2.8029,2949.6,2948.6,0.0339144]
[1766760487138,2.8029,2949.6,2948.6,0.41038799]
[1766760487343,2.8029,2949.6,2948.7,3.39132499]
[1766760487508,2.8029,2950.0,2948.8,0.03391209]
[1766760487724,2.8029,2950.0,2948.7,3.39132499]
[1766760488119,2.8029,2950.0,2948.7,6.78264998]
[1766760488318,2.8029,2950.0,2948.8,0.74982445]
[1766760489445,2.8029,2950.0,2948.8,4.14098621]
[1766760490142,2.8029,2951.0,2949.4,0.08815502]
[1766760490362,2.8029,2951.0,2949.5,0.03390405]
[1766760491017,0.886,2950.9,2949.6,0.08815502]
[1766760491214,2.8029,2950.8,2949.7,0.03390175]
[1766760491409,2.8029,2950.8,2949.8,3.39006034]
[1766760491914,2.8029,2950.8,2949.9,0.03389945]
[1766760492114,2.8029,2950.8,2949.4,0.889]
[1766760492346,2.8039,2950.0,2949.4,3.39048671]
[1766760492539,2.8039,2950.0,2949.5,0.03390405]
[1766760492847,2.8039,2950.0,2948.9,0.03391094]
[1766760493017,2.8039,2950.0,2949.6,3.39021747]